Cogmind - Beta 10.1 @@@ ROGUE MODE // 2020.10.28 @ 14:53:49 Player: Minty Result: Destroyed by L-31 Rogue with Katana Performance ------------- Evolutions (2) 1000 Regions Visited (7) 1400 Robots Destroyed (45) 225 Value Destroyed (821) 821 Prototype IDs (27) 540 Alien Tech Used (0) 0 Bonus (333) 333 TOTAL SCORE: 4319 Bonus ------- High Alert Combat Kills 33 Aligned with FarCom 300 Cogmind --------- Core Integrity 0/550 Matter 111/300 Energy 100/100 System Corruption 0% Temperature Cool (0) Movement Core (100) Ox1 Location -8/Materials Parts ------- > --- POWER (1) -------- (None) > --- PROPULSION (3) --- (None) > --- UTILITY (4) ------ Targeting Computer > --- WEAPON (3) ------- Scythe Scythe > --- INVENTORY (4) ---- Ion Engine Experimental Sensor Array Peak State ------------ > --- POWER ------------ Improved Ion Engine > --- PROPULSION ------- (None) > --- UTILITY ---------- Small Storage Unit Targeting Computer Advanced Targeting Computer Chronowheel > --- WEAPON ----------- Flak Cannon Rocket Launcher Scythe > --- INVENTORY -------- Ion Engine Experimental Sensor Array Scythe [Rating: 29] Favorites ----------- Power Light Nuclear Core Engine Ion Engine Power Core Light Nuclear Core Propulsion Aluminum Leg Leg Aluminum Leg Wheel Wheel Utility Small Storage Unit Device Heat Sink Storage Small Storage Unit Processor Targeting Computer Weapon Assault Rifle Energy Gun Shock Rifle Energy Cannon EM Pulse Cannon Ballistic Gun Assault Rifle Ballistic Cannon Flak Cannon Launcher Rocket Launcher Slashing Weapon Scythe Build | -11 -10 -10 -9 -9 -9 -8 -8 ------- Run | Scr Mat Min Mat Min Exi Min Mat Slots Evolved 4 | . . . 2 . . . 2 Power . | . . . . . . . . Propulsion 1 | . . . 1 . . . . Utility 2 | . . . 1 . . . 1 Weapon 1 | . . . . . . . 1 Parts Attached 32 | 6 . 6 4 2 . 6 8 Power 5 | 1 . 1 1 . . 2 . Engine 4 | 1 . 1 . . . 2 . Core 1 | . . . 1 . . . . Reactor . | . . . . . . . . Propulsion 6 | 2 . 2 . 2 . . . Treads . | . . . . . . . . Leg 2 | . . . . 2 . . . Wheel 4 | 2 . 2 . . . . . Hover . | . . . . . . . . Flight . | . . . . . . . . Utility 8 | 1 . 1 1 . . 2 3 Device 4 | . . 1 1 . . 1 1 Storage 1 | 1 . . . . . . . Processor 3 | . . . . . . 1 2 Hackware . | . . . . . . . . Protection . | . . . . . . . . Artifact . | . . . . . . . . Weapon 13 | 2 . 2 2 . . 2 5 Energy Gun 2 | 1 . . . . . 1 . Energy Cannon 1 | . . . 1 . . . . Ballistic Gun 2 | 1 . 1 . . . . . Ballistic Cannon 2 | . . . . . . 1 1 Launcher 4 | . . 1 1 . . . 2 Special Weapon . | . . . . . . . . Impact Weapon . | . . . . . . . . Slashing Weapon 2 | . . . . . . . 2 Piercing Weapon . | . . . . . . . . Special Melee Weapon . | . . . . . . . . Unidentified Prototypes 1 | . . 1 . . . . . Parts Lost 20 | . . 5 . 3 . 2 10 Power 2 | . . . . . . 1 1 Propulsion 5 | . . 2 . 1 . . 2 Utility 5 | . . . . . . 1 4 Weapon 8 | . . 3 . 2 . . 3 Highest Loss Streak 10 | . . 2 . 3 . 1 10 Average Slot Usage (%) 73 | . 85 83 71 68 66 67 81 Engine 5 | . 14 14 1 . . 1 8 Core 5 | . . . 9 11 11 9 . Leg 12 | . . . . 8 22 22 13 Wheel 7 | . 28 24 11 5 . . . Device 14 | . . 10 17 22 22 15 8 Storage 11 | . 14 14 11 11 11 11 8 Processor 2 | . . . . . . . 17 Energy Gun 2 | . 14 1 . . . 3 . Energy Cannon 1 | . . . 10 5 . . . Ballistic Gun 2 | . 14 10 . . . . . Ballistic Cannon 2 | . . . . . . 3 8 Launcher 3 | . . 5 10 5 . . 7 Slashing Weapon 1 | . . . . . . . 8 Naked Turns . | . . . . . . . . Heaviest Build 24 | 13 13 15 23 23 11 21 24 Greatest Support 26 | 26 26 26 10 20 20 20 20 Greatest Overweight (x) 5 | 1 . . 2 3 . 1 5 Average Overweight (x) . | . . . 1 1 . . 1 Largest Inventory Capacity 6 | 6 6 6 6 6 6 6 6 Average Capacity 5 | 5 6 6 6 6 6 6 5 Most Carried 6 | . 1 1 4 4 5 6 5 Average Carried 3 | . . . 2 4 4 5 4 Final Capacity 6 | 6 6 6 6 6 6 6 4 Final Carried 5 | . 1 1 4 4 5 4 2 Class Distribution -------------------- 84% | Mutant 15% | Scavenger-Mutant Dominant Class ---------------- Mutant | -10/Materials Mutant | -10/Mines Mutant | -9/Materials Mutant | -9/Mines Mutant | -9/Exiles Mutant | -8/Mines Scavenger-Mutant | -8/Materials Resources | -11 -10 -10 -9 -9 -9 -8 -8 ----------- Run | Scr Mat Min Mat Min Exi Min Mat Matter Collected 900 | 263 24 185 98 26 . 179 125 Remotely 89 | . . . . . . 89 . Salvage Created 869 | 72 30 155 135 26 . 120 331 Parts 59 | 1 . 12 10 3 . 14 19 Haulers Intercepted . | . . . . . . . . Recyclers Shooed . | . . . . . . . . Parts Field Recycled . | . . . . . . . . Retrieved Matter . | . . . . . . . . Parts Self-Destructed . | . . . . . . . . Prevented . | . . . . . . . . Kills | -11 -10 -10 -9 -9 -9 -8 -8 ------- Run | Scr Mat Min Mat Min Exi Min Mat Combat Hostiles Destroyed 37 | . . 10 5 1 . 9 12 Melee 2 | . . . . . . . 2 Guns 14 | . . 8 . . . 6 . Cannons 8 | . . . 4 . . 1 3 AOE 13 | . . 2 1 1 . 2 7 Classes Destroyed 9 | 1 1 4 1 1 . . 1 Worker 1 | . . 1 . . . . . Builder 4 | . . 1 1 . . . 2 Recycler 2 | 1 . . . . . . 1 Watcher 1 | . 1 . . . . . . Swarmer 22 | . . 6 3 . . 9 4 Grunt 5 | . . . . 1 . . 4 Sentry 5 | . . . 2 . . . 3 Hunter 1 | . . . . . . . 1 Assembled 4 | . . 4 . . . . . Best Kill Streak 6 | 1 1 3 5 1 . 6 5 Combat Bots Only 6 | . . 3 4 1 . 6 4 Max Kills in Single Turn 4 | 1 1 2 2 1 . 2 4 Gunslinging . | . . . . . . . . Exploded 3 | . . 1 1 1 . 2 3 Melee 1 | . . . . . . . 1 Uniques/NPCs Destroyed . | . . . . . . . . Combat | -11 -10 -10 -9 -9 -9 -8 -8 -------- Run | Scr Mat Min Mat Min Exi Min Mat Damage Taken 2344 | . . 541 283 133 . 231 1156 Core 836 | . . 121 58 44 . 60 553 Absorbed by Shields . | . . . . . . . . Core Remaining (%) 70 | 100 . 51 . . . 59 . Volleys Fired 93 | 7 2 35 9 2 . 21 17 Largest 2 | 2 2 2 2 2 . 2 2 Hottest 99 | 60 60 70 99 99 . 94 77 Shots Fired 154 | 14 4 42 18 3 . 41 32 Gun 75 | 14 4 37 . . . 20 . Cannon 49 | . . . 9 2 . 21 17 Launcher 30 | . . 5 9 1 . . 15 Special . | . . . . . . . . Kinetic 80 | 7 2 33 . . . 21 17 Thermal . | . . . . . . . . Explosive 30 | . . 5 9 1 . . 15 Electromagnetic 44 | 7 2 4 9 2 . 20 . Robot Hit Streak 10 | 3 1 5 4 2 . 6 10 Robot Miss Streak 5 | 3 5 3 3 1 . 4 5 Penetration Max . | . . . . . . . . Secondary Targets . | . . . . . . . . Shots Hit Robots 84 | 5 1 19 5 2 . 16 36 Core Hits 74 | 2 1 15 9 1 . 10 36 Critical Hits 1 | . . . . . . . 1 Critical Kills 1 | . . . . . . . 1 Critical Parts Destroyed . | . . . . . . . . Melee Attacks 9 | . . . . . . . 9 Impact . | . . . . . . . . Slashing 9 | . . . . . . . 9 Piercing . | . . . . . . . . Sneak Attacks . | . . . . . . . . Combat Hostiles . | . . . . . . . . Follow-up Attacks 1 | . . . . . . . 1 Damage Inflicted 2696 | 80 22 489 322 132 . 324 1327 Guns 501 | 80 22 267 . . . 132 . Cannons 569 | . . . 86 28 . 74 381 Explosions 1332 | . . 215 236 100 . 111 670 Melee 276 | . . . . . . . 276 Ramming 18 | . . 7 . 4 . 7 . Kinetic 732 | 22 . 255 . . . 74 381 Thermal 111 | . . . . . . 111 . Explosive 1221 | . . 215 236 100 . . 670 Electromagnetic 338 | 58 22 12 86 28 . 132 . Impact . | . . . . . . . . Slashing 276 | . . . . . . . 276 Piercing . | . . . . . . . . Highest Corruption . | . . . . . . . . Average Corruption . | . . . . . . . . Corruption Purged . | . . . . . . . . Overload Shots . | . . . . . . . . Overflow Damage 20 | . . 10 . . . . 10 Projectiles 1 | . . . . . . . 1 Explosions 10 | . . 10 . . . . . Melee 9 | . . . . . . . 9 Knockbacks 7 | . . . . . . 2 5 Impact . | . . . . . . . . Kinetic 7 | . . . . . . 2 5 Secondary . | . . . . . . . . Self-Inflicted Damage 323 | . . 65 155 1 . 3 99 Shots 12 | . . 3 5 . . . 4 Rammed 4 | . . 1 . 2 . 1 . Targets Rammed 4 | . . 1 . 2 . 1 . Kicked . | . . . . . . . . Crushed . | . . . . . . . . Highest Temperature 117 | . . 20 117 12 . . 63 Average Temperature 30 | . . 11 39 9 . . 32 Received Heat Transfer 697 | . . 160 27 78 . . 432 Siege Activations . | . . . . . . . . Robots Corrupted . | . . . . . . . . Combat Hostiles . | . . . . . . . . Parts Fried 1 | . . . . . . 1 . Impact Corruptions . | . . . . . . . . Robots Melted . | . . . . . . . . Combat Hostiles . | . . . . . . . . Parts Melted . | . . . . . . . . Heat Transferred 150 | . . . . . . 150 . Parts Sabotaged . | . . . . . . . . Parts Stolen . | . . . . . . . . Parts Stripped . | . . . . . . . . Power Chain Reactions . | . . . . . . . . Missiles Intercepted . | . . . . . . . . Alert | -11 -10 -10 -9 -9 -9 -8 -8 ------- Run | Scr Mat Min Mat Min Exi Min Mat Peak Influence 494 | 5 16 141 241 128 . 183 494 Initial 93 | . 3 6 46 93 . . 70 Average 96 | . 5 99 146 98 . 19 248 Maximum Alert Level 2 | . . . 1 . . . 2 Low Security (%) 87 | 100 100 100 63 100 . 100 47 Level 1 7 | . . . 36 . . . 26 Level 2 4 | . . . . . . . 26 Level 3 . | . . . . . . . . Level 4 . | . . . . . . . . Level 5 . | . . . . . . . . High Security . | . . . . . . . . Max Security . | . . . . . . . . Squads Dispatched 4 | . 1 . 1 . . . 2 Investigation 1 | . 1 . . . . . . Extermination . | . . . . . . . . Reinforcement 3 | . . . 1 . . . 2 Assault . | . . . . . . . . Garrison . | . . . . . . . . Intercept . | . . . . . . . . Construction Impeded 1 | . . . . . . . 1 Haulers Reinforced . | . . . . . . . . Stealth | -11 -10 -10 -9 -9 -9 -8 -8 --------- Run | Scr Mat Min Mat Min Exi Min Mat Distress Signals . | . . . . . . . . Communications Jammed . | . . . . . . . . Distress Signals . | . . . . . . . . Times Spotted 65 | . 1 21 6 2 . 13 22 Peak Tracking Total 7 | . 1 4 3 2 . 4 7 Tactical Retreats 6 | . . 2 . 1 . 3 . Traps | -11 -10 -10 -9 -9 -9 -8 -8 ------- Run | Scr Mat Min Mat Min Exi Min Mat Traps Triggered . | . . . . . . . . Indirectly . | . . . . . . . . Trap Hack Attempts . | . . . . . . . . Triggered . | . . . . . . . . Disarmed . | . . . . . . . . Reprogrammed . | . . . . . . . . Reused . | . . . . . . . . Traps Extracted . | . . . . . . . . Installed . | . . . . . . . . Triggered . | . . . . . . . . Machines | -11 -10 -10 -9 -9 -9 -8 -8 ---------- Run | Scr Mat Min Mat Min Exi Min Mat Machines Disabled 5 | . . . 1 1 . 2 1 Max in Single Turn 2 | . . . 1 1 . 2 1 Machines Sabotaged . | . . . . . . . . Garrisons Compromised . | . . . . . . . . Overloaded Fab Kills . | . . . . . . . . Fab Network Shutdowns . | . . . . . . . . Hacking | -11 -10 -10 -9 -9 -9 -8 -8 --------- Run | Scr Mat Min Mat Min Exi Min Mat Machines Accessed 3 | . 1 . . . 2 . . Terminals 1 | . 1 . . . . . . Fabricators . | . . . . . . . . Repair Stations . | . . . . . . . . Recycling Units . | . . . . . . . . Scanalyzers . | . . . . . . . . Garrison Access . | . . . . . . . . Total Hacks 7 | . 5 . . . 2 . . Successful 4 | . 2 . . . 2 . . Failed 2 | . 2 . . . . . . Catastrophic . | . . . . . . . . Database Lockouts 1 | . 1 . . . . . . Manual 6 | . 5 . . . 1 . . Terminals 5 | . 5 . . . . . . Fabricators . | . . . . . . . . Repair Stations . | . . . . . . . . Recycling Units . | . . . . . . . . Scanalyzers . | . . . . . . . . Garrison Access . | . . . . . . . . Terminal Hacks 4 | . 2 . . . 2 . . Record 1 | . . . . . 1 . . Prototype ID Bank 2 | . 2 . . . . . . EX-Prototype ID Bank 1 | . . . . . 1 . . Fabricator Hacks . | . . . . . . . . Repair Station Hacks . | . . . . . . . . Recycling Unit Hacks . | . . . . . . . . Scanalyzer . | . . . . . . . . Garrison Access Hacks . | . . . . . . . . Unauthorized Hacks . | . . . . . . . . Terminals . | . . . . . . . . Fabricators . | . . . . . . . . Repair Stations . | . . . . . . . . Recycling Units . | . . . . . . . . Scanalyzers . | . . . . . . . . Garrison Access . | . . . . . . . . Data Cores Recovered . | . . . . . . . . Used . | . . . . . . . . Hacking Detections 1 | . 1 . . . . . . Full Trace Events 1 | . 1 . . . . . . Feedback Events . | . . . . . . . . Feedback Blocked . | . . . . . . . . Robot Schematics Acquired . | . . . . . . . . Robots Built . | . . . . . . . . Matter . | . . . . . . . . Time . | . . . . . . . . Total Robot Build Rating . | . . . . . . . . Part Schematics Acquired . | . . . . . . . . Parts Built . | . . . . . . . . Matter . | . . . . . . . . Time . | . . . . . . . . Total Part Build Rating . | . . . . . . . . Parts Repaired . | . . . . . . . . Time . | . . . . . . . . Parts Recycled . | . . . . . . . . Recycled Matter . | . . . . . . . . Retrieved Matter . | . . . . . . . . Retrieved Components . | . . . . . . . . Parts Scanalyzed . | . . . . . . . . Part Schematics Acquired . | . . . . . . . . Parts Damaged . | . . . . . . . . Bothacking | -11 -10 -10 -9 -9 -9 -8 -8 ------------ Run | Scr Mat Min Mat Min Exi Min Mat Used RIF Installer . | . . . . . . . . Robots Hacked . | . . . . . . . . Non-combat . | . . . . . . . . Combat . | . . . . . . . . Robot Hacks Applied . | . . . . . . . . Relay Couplers Released . | . . . . . . . . Robots Rewired . | . . . . . . . . Allies Hacked . | . . . . . . . . Hacks Repelled . | . . . . . . . . Allies | -11 -10 -10 -9 -9 -9 -8 -8 -------- Run | Scr Mat Min Mat Min Exi Min Mat Total Allies . | . . . . . . . . Largest Group . | . . . . . . . . Highest-Rated Group . | . . . . . . . . Highest-Rated Ally . | . . . . . . . . Total Orders . | . . . . . . . . Ally Attacks . | . . . . . . . . Total Damage . | . . . . . . . . Kills . | . . . . . . . . Allies Corrupted . | . . . . . . . . Allies Melted . | . . . . . . . . Intel | -11 -10 -10 -9 -9 -9 -8 -8 ------- Run | Scr Mat Min Mat Min Exi Min Mat Robot Analysis Total . | . . . . . . . . Derelict Logs Recovered 3 | . . 2 . 1 . . . Drone Launches . | . . . . . . . . Drone Recoveries . | . . . . . . . . Exploration | -11 -10 -10 -9 -9 -9 -8 -8 ------------- Run | Scr Mat Min Mat Min Exi Min Mat Turns Passed 1800 | 68 67 368 131 123 263 501 279 Spaces Moved 1336 | 51 67 317 96 102 219 354 130 Core 30 | 20 . . . 3 . . 7 Treads . | . . . . . . . . Legs 737 | . . . . 41 219 354 123 Wheels 569 | 31 67 317 96 58 . . . Hover . | . . . . . . . . Flight . | . . . . . . . . Fastest Speed 50 | 50 90 80 80 90 120 120 100 Average Speed 109 | 75 90 85 97 111 120 120 149 Slowest Speed 300 | 100 90 100 100 200 120 150 300 Overloaded Moves . | . . . . . . . . Propulsion Burnouts . | . . . . . . . . Robots Hopped . | . . . . . . . . Cave-ins Triggered . | . . . . . . . . Exploration Rate (%) 34 | 5 20 53 18 26 59 78 19 Regions Visited 7 Branch Regions 4 Pre-discovered Areas 2 | . . 1 . . 1 . . Known Exits Taken . | . . . . . . . . Unknown Exits Taken 7 | 1 1 1 1 1 1 1 . Scrap Searched 2 | . . 1 . . . 1 . Spaces Dug 9 | . . 9 . . . . . Terrain Destroyed 290 | . . 38 97 15 . 14 126 Melee . | . . . . . . . . Projectile 9 | . . . . . . 9 . AOE 281 | . . 38 97 15 . 5 126 Terrain Rammed . | . . . . . . . . Walls Destroyed . | . . . . . . . . Machines Disabled . | . . . . . . . . Actions | -11 -10 -10 -9 -9 -9 -8 -8 --------- Run | Scr Mat Min Mat Min Exi Min Mat Total 1493 | 63 69 368 112 107 219 386 169 Wait 15 | . . 9 . . . 4 2 Move 1329 | 50 66 316 95 101 218 353 130 Hop . | . . . . . . . . Pick Up 7 | . 1 . 3 . 1 . 2 Fast Attach 20 | 6 . 2 4 2 . 3 3 Attach 7 | . . 1 . . . 2 4 Detach 1 | . . . . . . 1 . Swap 5 | . . 3 . . . 1 1 Drop 4 | . . 1 1 . . . 2 Fire 93 | 7 2 35 9 2 . 21 17 Melee 8 | . . . . . . . 8 Ram 2 | . . 1 . 1 . . . Kick 2 | . . . . 1 . 1 . Crush . | . . . . . . . . Escape Stasis . | . . . . . . . . Rewire . | . . . . . . . . Trap . | . . . . . . . . Miscellaneous . | . . . . . . . . Route ------- -11/Scrapyard -10/Materials -10/Mines -9/Materials -9/Mines -9/Exiles -8/Mines -8/Materials (discovered 1 exit: Fac) History --------- Turn | Location | Event 40 | -11/Scrapyard | Discovered new exit (range 15) 69 | -11/Scrapyard | Entered Materials 115 | -10/Materials | Discovered new exit (range 16) 118 | -10/Materials | Central database locked down 136 | -10/Materials | Entered Mines 164 | -10/Mines | Learned Materials non-interactive machine intel 168 | -10/Mines | Met a Derelict bent on vengeance 170 | -10/Mines | Assembled infested the area 225 | -10/Mines | Found a damaged Exp. Sensor Array with a note attached 226 | -10/Mines | Found Prototype Device 226 | -10/Mines | Identified Exp. Sensor Array 304 | -10/Mines | Build established: Mutant 498 | -10/Mines | Discovered new exit (range 8) 504 | -10/Mines | Entered Materials 504 | -9/Materials | Evolved 2 slots: Propulsion x1, Utility x1 505 | -9/Materials | Loaded intel: 35 non-interactive machine locations 620 | -9/Materials | Discovered new exit (range 16) 635 | -9/Materials | Entered Mines 694 | -9/Mines | Learned location of 1 exit from Materials 730 | -9/Mines | Lost 3 parts (1n2w) 751 | -9/Mines | Deemed a non-threat by the Exiles lab entrance 751 | -9/Mines | Discovered new exit (range 5) 758 | -9/Mines | Entered Exiles 787 | -9/Exiles | Met 8R-AWN 809 | -9/Exiles | Met EX-HEX 842 | -9/Exiles | Met EX-BIN 856 | -9/Exiles | Aligned with FarCom system 857 | -9/Exiles | Given EX-Vault access code 887 | -9/Exiles | Opened EX-Vault 895 | -9/Exiles | Found Chronowheel 930 | -9/Exiles | Warned to stay clear of 0b10 Research branches 967 | -9/Exiles | Met EX-DEC 972 | -9/Exiles | Learned location of Zion (-7) 1010 | -9/Exiles | Discovered new exit (range 10) 1021 | -9/Exiles | Left Exiles lab with Chronowheel 1021 | -9/Exiles | Entered Mines 1489 | -8/Mines | Discovered new exit (range 15) 1522 | -8/Mines | Entered Materials 1522 | -8/Materials | Evolved 2 slots: Utility x1, Weapon x1 1523 | -8/Materials | Identified exit to Factory 1773 | -8/Materials | Activated Chronowheel 1793 | -8/Materials | Core integrity fell below 50% 1797 | -8/Materials | Core integrity fell below 20% 1801 | -8/Materials | Destroyed by L-31 Rogue with Katana Last Messages --------------- 01781_ The unstable cave ceiling collapses. 01781_ Flak Cannon destroyed. 01784_ K-01 Serf collects debris. 01785_ The unstable cave ceiling collapses. 01785_ Rocket Launcher destroyed. 01785_ U-05 Engineer lays Concrete. 01787_ Adv. Targeting Computer destroyed. 01788_ U-05 Engineer lays Concrete. 01788_ K-01 Serf collects debris. 01789_ U-05 Engineer lays Concrete. 01789_ Chronowheel destroyed. 01789_ Spacetime feels normal again. 01791_ U-05 Engineer lays Concrete. 01793_ Destroyed Lgt. Nuclear Core. 01793_ Scythe follow-up attack on G-47 Trooper. 01793_ U-05 Engineer builds a Wall. 01796_ G-47 Trooper destroyed. 01797_ U-05 Engineer builds a Wall. 01798_ Sml. Storage Unit destroyed. 01798_ Acquired 45 matter. Map ----- +----------------------------------------------------+ | ?????????????????????????????????????????????????? | | ?????????????????????????????????????????????????? | | ?????????????????????????????????????????????????? | | ?????????????????????????????????????????????????? | | ?????????????????????????????????????????????????? | | ?????????????????????????????????????????????????? | | ?????????????????????????????????????????????????? | | ?????????????????????????????????????????????????? | | ?????????????????????????????????????????????????? | | ?????????????????????????????? ????????????????? | | ?????????????????????????????? g???????????????? | | ?????????????????????????????? ????????????????? | | ??????????????????????????????# ????????????????? | | ?????????????????????????????? ????????????????? | | ??????????????????????????ss?s#! ????????????????? | | ??????????????????????????????"%%????????????????? | | ?????????????????????????????? = ????????????????? | | ??????????????????????????????# #?????##????#????? | | ????????????????????????###???#w#?????# ?? ????? | | ????????????????????????# ??? /?????# "?? """ ## | | ????????????????????????# #???# #?????# """ """ # | | ????????????????????????#a#???# #?????# """ "" #? | | ????????????????????????# #???# #?????# #? | | ??????????????????????### #???# ####??# " " #? | | ??????????????????????? ##### ## #??# "T" #? | | ??????????????????????###@#g g #??# """ ???? | | ??????????????????????# =l # ! ##### +###### | | ??????????????????????+ [g #*% ## + | | ??????????????????????# g = ### #???# | | ???????????Y??????????# % #???# | | ??????????????????????# # #### # #???# | | ??????????????????????# u# # ### ## #???# | | ??????????w???????????###+### ####?#### #???# | | ???????????????????????? ?? #??????# #???# | | ????????????????????????# ?## #??????# #???? | | ????????????????????????#????### ##??????# #???? | | ????????????????????????????????##??????## ##### | | ????????????????????????????????????????# ## | | ????????????????????????????????????????# | | ????????????????????????????????????????# | | ????????????????????????????????????????# | | ????????????????????????????????????????# ### | | ????????????????????????????????????????#######?# | | ????????????????????????????????????????????????## | | ?????????????????????????????????????????????????? | | ?????????????????????????????????????????????????? | | ?????????????????????????????????????????????????? | | ?????????????????????????????????????????????????? | | ?????????????????????????????????????????????????? | | ?????????????????????????????????????????????????? | +----------------------------------------------------+ Best States ------------- Heat Dissipation 41 Energy Generation 14 Energy Capacity 265 Matter Stores 300 Matter Capacity 300 Sight Range 16 Robot Scan Range 30 Terrain Scan Density 10 Evasion (%) 50 Targeting Accuracy 13 Item Schematics ----------------- None Robot Schematics ------------------ None Fabricated ------------ Nothing Alien Tech Used ----------------- None Achievements -------------- None Challenges ------------ None Game ------ Seed OverloadOpticalDoublenader Manual? 0 Play Time 00:12:50 Cumulative 319.4 hours Start 2020.10.28 @ 14:41:32 End 2020.10.28 @ 14:53:49 Sessions 1 Manual Loads 0 Difficulty Rogue Special Mode None Game No. 181 Rogue 24 Adventurer 52 Explorer 105 Win Type - Total 19 Types 17/0/1/0/0/0/0/1/0 Lore% 62 Gallery% 85 Achievement% 64 Wizard Run 0 Options --------- ASCII 0 Keyboard 0 Movement Mouse Keybinds 0 Fullscreen 2 Font 18/TerminusBold Map View 76x50 Tactical HUD 1 Map Filters NONE Filters NONE Steam 1 RUN: d02707bd-4267-4e9b-8d7d-1dafddc31aa1